bitfinex/quotes_ETHUSD_20250217
["timestamp","ask_amount","ask_price","bid_price","bid_amount"]
[1739784600559,7.16211133,2721.1,2720.5,7.3514]
[1739784600760,7.16211133,2721.1,2720.5,3.67568]
[1739784601055,3.67534,2720.9,2720.4,3.67592]
[1739784601421,3.67521,2721.0,2720.3,3.67598]
[1739784601618,3.67521,2721.0,2720.5,3.67576]
[1739784601831,4.46672,2721.2,2720.3,0.982038]
[1739784602022,0.277,2721.1,2720.8,3.67527]
[1739784602841,11.92913,2721.8,2720.6,0.7819]
[1739784603022,4.71967,2721.6,2721.1,3.67497]
[1739784603423,1.0453,2721.6,2721.2,3.67479]
[1739784603633,4.71971,2721.6,2721.1,3.67497]
[1739784603849,3.0,2721.5,2721.1,3.67497]
[1739784604447,6.67452,2721.5,2721.0,3.67509]
[1739784604824,3.67468,2721.4,2720.9,3.67516]
[1739784605038,3.67468,2721.4,2720.6,0.7819]
[1739784605039,3.67473,2721.3,2720.6,0.7819]
[1739784605244,3.67468,2721.4,2720.8,3.67531]
[1739784605444,3.67468,2721.4,2720.9,3.67523]
[1739784606461,0.7975,2721.3,2720.9,3.67523]
[1739784606664,4.47221,2721.3,2720.7,3.67539]
[1739784606967,3.6749,2721.2,2720.7,7.35083]
[1739784607157,3.67524,2721.0,2720.5,3.67575]
[1739784607354,0.805,2720.9,2720.5,3.67575]
[1739784607555,0.805,2720.9,2720.6,3.67554]
[1739784607868,0.805,2720.9,2720.6,3.67559]
[1739784608071,0.805,2720.9,2720.5,3.67567]
[1739784608274,0.805,2720.9,2720.6,3.67558]
[1739784608642,0.8243,2721.2,2721.0,3.67503]
[1739784609170,3.8243,2721.4,2721.1,3.67498]
[1739784609328,0.8243,2721.4,2721.1,3.67498]
[1739784609768,0.8243,2721.4,2721.0,3.67503]
[1739784609967,0.8243,2721.4,2720.5,1.670567]
[1739784610274,3.67444,2721.5,2720.5,1.670567]
[1739784610275,3.0,2721.2,2720.6,3.67556]
[1739784610445,3.6752,2721.0,2720.5,3.67569]
[1739784610872,3.6752,2721.0,2720.5,3.67579]
[1739784611274,0.791,2721.1,2720.6,3.67565]
[1739784611568,0.791,2721.1,2720.7,3.67543]
[1739784611774,0.791,2721.1,2720.8,3.67527]
[1739784612077,0.791,2721.1,2720.9,3.67516]
[1739784612480,0.791,2721.1,2721.0,3.67511]
[1739784612775,0.7724,2721.3,2721.0,3.67511]
[1739784612985,0.7724,2721.3,2720.9,3.67516]
[1739784613283,4.44713,2721.3,2720.8,3.67538]
[1739784613783,4.44713,2721.3,2720.7,7.35086]
[1739784613784,3.67486,2721.2,2720.7,7.35086]
[1739784614282,3.67486,2721.2,2720.7,3.67542]
[1739784614463,0.7724,2721.3,2720.8,3.67538]
[1739784614669,0.7724,2721.3,2720.7,3.67542]
[1739784614883,3.67485,2721.2,2720.8,3.67537]
[1739784615079,0.7724,2721.3,2720.8,7.35068]
[1739784615266,0.7724,2721.3,2720.8,3.67531]
[1739784615444,4.44713,2721.3,2720.8,3.6753]
[1739784618861,0.7724,2721.3,2721.0,3.67511]
[1739784620111,0.7724,2721.3,2720.9,4.4683]
[1739784620274,0.7724,2721.3,2720.9,0.7931]
[1739784620478,0.7724,2721.3,2720.9,4.46833]
[1739784620678,0.7724,2721.3,2721.0,3.67511]
[1739784621415,0.7724,2721.3,2721.1,3.67491]
[1739784621711,0.7724,2721.3,2721.0,3.6751]
[1739784622079,0.7724,2721.3,2720.9,4.46825]
[1739784622080,0.7724,2721.3,2720.9,4.46833]
[1739784623219,4.44714,2721.3,2720.9,4.46833]
[1739784623404,0.7724,2721.3,2720.9,4.46833]
[1739784623775,0.7724,2721.3,2721.0,3.67511]
[1739784624623,0.7724,2721.3,2721.1,3.67491]
[1739784625175,0.7724,2721.3,2721.0,3.67511]
[1739784626726,0.7724,2721.3,2721.0,3.67503]
[1739784626958,0.7724,2721.3,2721.1,3.67498]
[1739784627321,0.7724,2721.3,2721.0,3.67503]
[1739784628855,1.192913,2721.7,2721.0,3.67503]
[1739784628856,3.48709133,2722.0,2721.4,3.67457]
[1739784629057,0.7682,2722.1,2721.7,3.67417]
[1739784629224,0.277,2722.0,2721.8,3.67399]
[1739784629424,0.277,2722.0,2721.6,3.6742]
[1739784629619,0.277,2722.0,2721.1,0.7926]
[1739784629620,3.95079,2722.0,2721.1,0.7926]
[1739784629847,0.7707,2721.7,2721.3,3.67469]
[1739784630162,10.63294033,2721.9,2720.8,6.1369]
[1739784630359,3.67453,2721.5,2720.9,3.67524]
[1739784630552,4.850253,2721.4,2720.9,3.67524]
[1739784630854,4.4828,2721.4,2720.9,3.67524]
[1739784631041,0.8082,2721.4,2720.9,3.67524]
[1739784631220,0.8082,2721.4,2720.8,4.48219]
[1739784631419,0.8082,2721.4,2721.0,3.67503]
[1739784631657,0.8082,2721.4,2721.1,3.67491]
[1739784631858,0.8082,2721.4,2721.2,3.67484]
[1739784632020,0.8082,2721.4,2721.1,3.67491]
[1739784632851,0.8247,2721.6,2721.2,3.67478]
[1739784633318,0.8247,2721.6,2720.9,3.67515]
[1739784633523,3.67444,2721.5,2721.0,3.67502]
[1739784633925,0.8247,2721.6,2721.0,3.67502]
[1739784634127,0.8247,2721.6,2721.1,3.67491]
[1739784634347,4.49909,2721.6,2721.2,3.67483]
[1739784634759,0.8247,2721.6,2721.2,3.67483]
[1739784634954,0.8247,2721.6,2721.3,3.67459]
[1739784635159,0.7664,2721.8,2721.4,3.67456]
[1739784635375,1.0434,2721.8,2721.4,3.67456]
[1739784635676,0.277,2721.8,2721.6,3.6743]
[1739784635877,0.277,2721.8,2721.7,3.67417]
[1739784636082,6.4115,2722.1,2721.8,3.67399]
[1739784636391,6.1345,2722.1,2721.9,3.67378]
[1739784636681,8.536,2722.2,2722.0,3.67376]
[1739784636843,8.536,2722.2,2722.0,3.67368]
[1739784637043,8.536,2722.2,2722.1,3.67363]
[1739784638185,8.536,2722.2,2722.0,3.67368]
[1739784638388,8.536,2722.2,2721.8,4.50053]
[1739784638554,8.536,2722.2,2721.5,3.67431]
[1739784638555,3.67372,2722.1,2721.5,3.67431]
[1739784638754,0.7646,2721.2,2720.4,0.7823]
[1739784638992,3.67508,2721.1,2720.5,3.67566]
[1739784639163,3.48709133,2721.0,2720.2,0.7823]
[1739784639360,3.6756,2720.7,2719.9,4.45193]
[1739784639574,3.6756,2720.7,2720.0,3.67637]
[1739784639867,3.6756,2720.7,2719.9,4.45193]
[1739784640073,0.7724,2720.6,2719.9,3.67653]
[1739784640377,4.44807,2720.6,2719.9,4.411865]
[1739784641282,0.7724,2720.6,2720.1,3.6762]
[1739784642222,0.7724,2720.6,2720.1,3.67633]
[1739784644101,0.7724,2720.6,2720.2,3.67613]
[1739784644296,0.7724,2720.6,2720.1,3.67633]
[1739784644512,0.7724,2720.6,2720.1,3.67621]
[1739784644700,0.7724,2720.6,2720.1,4.043831]
[1739784644904,1.0494,2720.6,2720.3,3.67604]
[1739784645100,1.0494,2720.6,2720.1,4.043941]
[1739784645301,1.0494,2720.6,2720.1,4.043851]
[1739784645827,1.0494,2720.6,2720.2,3.67613]
[1739784646195,1.0494,2720.6,2720.1,4.043851]
[1739784646395,1.0494,2720.6,2720.2,3.67608]
[1739784647001,1.0494,2720.6,2720.3,3.67603]
[1739784647325,3.67525,2720.9,2720.4,3.67593]
[1739784648218,3.67546,2720.8,2720.2,3.67612]
[1739784648635,3.67556,2720.7,2720.2,3.67612]
[1739784648844,0.7756,2720.6,2719.8,3.67666]
[1739784649332,0.7756,2720.6,2719.8,7.35332]
[1739784649333,4.45138,2720.6,2719.8,7.35332]
[1739784649532,5.24522713,2720.6,2719.8,7.35332]
[1739784649702,3.67593,2720.4,2719.8,3.67666]
[1739784649901,3.67593,2720.4,2719.9,3.67658]
[1739784650098,3.6762,2720.2,2719.6,0.7518]
[1739784650296,3.67633,2720.1,2719.4,3.67726]
[1739784650498,3.67668,2719.9,2719.3,3.67736]
[1739784650720,3.67674,2719.8,2719.3,3.67736]
[1739784650929,3.67668,2719.9,2719.3,3.67736]
[1739784651130,3.67668,2719.9,2719.3,7.35469]
[1739784651732,3.7756,2720.1,2719.6,3.67698]
[1739784651932,0.7756,2720.1,2719.6,3.67693]
[1739784652141,0.277,2720.0,2719.7,3.67682]
[1739784652543,0.277,2720.0,2719.8,3.67668]
[1739784652841,0.277,2720.2,2720.0,3.67638]
[1739784653041,0.277,2720.2,2719.8,3.6767]
[1739784653218,0.277,2720.2,2719.9,3.67658]
[1739784653930,0.7954,2720.7,2720.2,3.67606]
[1739784654116,0.277,2720.8,2720.0,0.7961]
[1739784654447,0.277,2720.8,2720.3,3.67599]
[1739784654655,3.67553,2720.7,2720.1,7.35251]
[1739784654819,3.67553,2720.7,2720.1,7.35249]
[1739784655009,3.67553,2720.7,2720.1,3.67624]
[1739784655010,3.67568,2720.6,2720.1,3.67624]
[1739784655204,3.67596,2720.4,2719.9,3.67653]
[1739784655406,3.67596,2720.4,2719.4,6.67723]
[1739784655407,3.67629,2720.2,2719.6,3.67693]
[1739784655917,3.67618,2720.3,2719.6,3.67692]
[1739784656122,3.67618,2720.3,2719.7,3.67686]
[1739784656325,3.67622,2720.2,2719.7,3.67686]
[1739784656660,3.67634,2720.1,2719.6,3.677]
[1739784656993,0.8234,2720.0,2719.5,3.67705]
[1739784657395,4.49988,2720.0,2719.5,3.67705]
[1739784657554,0.277,2720.0,2719.5,0.4487699]
[1739784657756,0.277,2720.0,2719.2,4.45385]
[1739784657958,0.277,2720.0,2719.5,3.67708]
[1739784658151,0.277,2720.0,2719.5,3.67707]
[1739784658347,0.277,2720.0,2719.6,3.677]
[1739784658588,0.277,2720.0,2719.6,3.67687]
[1739784658792,0.277,2720.0,2719.3,3.67738]
[1739784659096,0.277,2720.0,2719.8,3.67666]
[1739784659265,0.277,2720.0,2719.7,3.67686]
[1739784659462,0.277,2720.0,2719.4,3.67719]
[1739784659673,0.277,2720.0,2719.6,3.677]
[1739784660187,0.277,2720.0,2719.6,3.67692]
[1739784660769,3.95347,2720.0,2719.4,3.67717]
[1739784660966,4.42712,2719.9,2719.4,3.67717]
[1739784661273,1.588553,2719.9,2719.1,3.67768]
[1739784661475,3.67687,2719.7,2719.0,3.67773]
[1739784661674,3.67683,2719.8,2719.5,3.67711]
[1739784661675,0.277,2719.8,2719.5,3.67711]
[1739784661895,0.277,2719.8,2719.5,3.67707]
[1739784662091,0.277,2719.8,2719.3,7.35465]
[1739784662396,0.277,2719.8,2719.4,3.67721]
[1739784662870,0.277,2719.8,2719.4,3.6772]
[1739784663207,0.277,2719.8,2719.6,3.67692]
[1739784663494,0.277,2719.8,2719.7,3.67687]
[1739784663660,0.277,2719.8,2719.5,3.67714]
[1739784663856,0.277,2719.8,2719.4,3.67724]
[1739784664286,0.277,2719.8,2719.5,3.67712]
[1739784664963,0.277,2719.8,2719.5,7.35418]
[1739784665297,0.277,2719.8,2719.5,3.6771]
[1739784665685,0.277,2719.8,2719.3,7.35468]
[1739784665865,0.277,2719.8,2719.4,3.67717]
[1739784666265,0.277,2719.8,2719.5,3.67713]
[1739784666793,0.277,2719.8,2719.3,3.67733]
[1739784667092,0.277,2719.8,2719.4,3.67727]
[1739784667262,0.277,2719.8,2719.4,3.67721]
[1739784667462,0.277,2719.8,2719.4,7.35441]
[1739784667696,0.277,2719.8,2719.5,3.67711]
[1739784668464,0.277,2719.8,2719.4,3.67719]
[1739784668883,3.67694,2719.7,2719.2,3.67745]
[1739784669165,0.7784,2719.6,2719.2,3.67745]
[1739784670100,0.277,2719.8,2718.9,3.67795]
[1739784670101,3.67728,2719.4,2718.9,3.67795]
[1739784670412,0.446148,2719.3,2718.8,3.67803]
[1739784670564,4.123568,2719.3,2718.8,3.67801]
[1739784670769,0.7612,2719.1,2718.6,3.67826]
[1739784670963,0.7612,2719.1,2718.4,0.8231]
[1739784671300,0.7612,2719.1,2718.7,3.67812]
[1739784671595,0.7612,2719.1,2718.7,7.35626]
[1739784671798,0.7612,2719.1,2718.8,3.67809]
[1739784671966,0.7612,2719.1,2718.7,3.67812]
[1739784672166,0.7612,2719.1,2718.7,7.35625]
[1739784672366,0.7612,2719.1,2718.7,3.67812]
[1739784672598,4.882825,2719.1,2718.6,3.67827]
[1739784672802,1.205065,2719.1,2718.4,0.8231]
[1739784672968,0.7612,2719.1,2718.5,3.67849]
[1739784673166,0.7612,2719.1,2718.6,3.67825]
[1739784673861,0.7612,2719.1,2718.6,3.67822]
[1739784674097,3.67816,2718.8,2718.2,3.67881]
[1739784674290,0.7619,2718.9,2718.4,3.67854]
[1739784674489,4.43986,2718.9,2718.4,3.67854]
[1739784674863,3.67818,2718.8,2718.2,3.67884]
[1739784675504,0.7619,2718.9,2718.3,3.67875]
[1739784675703,1.62667573,2718.9,2718.2,3.6789]
[1739784675912,3.67823,2718.7,2718.1,3.67896]
[1739784676107,3.67836,2718.6,2718.1,3.67896]
[1739784676283,7.35682,2718.6,2718.1,3.67896]
[1739784676484,0.7741,2718.4,2717.9,3.67923]
[1739784676794,0.7741,2718.4,2717.9,0.4218413]
[1739784676996,0.808,2718.9,2718.1,3.48709133]
[1739784677195,0.277,2718.8,2718.7,3.67816]
[1739784677599,0.808,2718.9,2718.8,3.67809]
[1739784677801,0.277,2719.0,2718.9,3.67795]
[1739784678309,0.808,2719.1,2719.0,3.67782]
[1739784678495,12.43611088,2719.9,2719.0,3.67782]
[1739784678496,0.277,2719.5,2719.0,0.735577]
[1739784678815,0.277,2719.5,2719.2,3.67747]
[1739784678986,0.277,2719.5,2719.2,7.35492]
[1739784679308,0.277,2719.5,2719.3,3.67739]
[1739784679607,0.277,2719.5,2719.2,3.67745]
[1739784680111,0.277,2719.5,2719.1,3.67761]
[1739784680970,0.277,2719.5,2719.2,3.67754]
[1739784681182,1.1027,2719.6,2719.3,3.6774]
[1739784681511,1.1027,2719.6,2719.2,0.367754]
[1739784681512,0.8257,2719.6,2719.5,3.67714]
[1739784681915,0.8257,2719.6,2719.2,4.045224]
[1739784682101,0.8257,2719.6,2719.2,4.045184]
[1739784682278,0.8257,2719.6,2719.4,3.67724]
[1739784682482,0.8257,2719.6,2719.2,4.045184]
[1739784682681,0.8257,2719.6,2719.2,3.67743]
[1739784682880,0.7753,2720.0,2719.1,3.48709133]
[1739784683210,0.277,2720.2,2719.7,3.6768]
[1739784683421,0.277,2720.2,2719.5,3.67709]
[1739784683576,0.7753,2719.9,2719.4,3.67726]
[1739784684096,4.897171,2719.9,2719.3,3.6773]
[1739784684502,3.67678,2719.8,2719.2,0.27210593]
[1739784684698,1.220481,2719.9,2719.3,3.67741]
[1739784684878,1.220481,2719.9,2719.5,3.67713]
[1739784685079,1.0523,2719.9,2719.1,7.16471133]
[1739784685381,1.0523,2719.9,2719.6,3.67688]
[1739784685876,1.0523,2719.9,2719.4,3.67721]
[1739784686080,1.0523,2719.9,2719.6,3.6769]
[1739784686280,1.0523,2719.9,2719.6,7.35383]
[1739784687221,1.0523,2719.9,2719.7,3.67679]
[1739784688114,1.0523,2719.9,2719.4,3.6772]
[1739784688322,1.0523,2719.9,2719.5,3.67712]
[1739784688816,4.72892,2719.9,2719.4,3.6772]
[1739784689109,3.67683,2719.8,2719.2,3.67747]
[1739784689318,0.781,2719.7,2719.0,3.67774]
[1739784689482,3.67708,2719.6,2719.1,3.67764]
[1739784690428,0.781,2719.7,2719.1,3.67764]
[1739784690580,0.781,2719.7,2718.7,0.8261]
[1739784690780,0.781,2719.7,2719.5,3.67707]
[1739784690781,0.277,2719.6,2719.5,3.67707]
[1739784690981,0.277,2719.6,2719.3,3.67738]
[1739784692199,0.277,2719.6,2719.1,3.67761]
[1739784692588,3.95403,2719.6,2719.1,3.67761]
[1739784692892,3.95403,2719.6,2719.1,3.67759]
[1739784693089,3.67742,2719.3,2718.8,3.67801]
[1739784693287,3.67742,2719.3,2718.7,3.67813]
[1739784693794,0.7939,2719.2,2718.7,3.67813]
[1739784694111,0.7939,2719.1,2718.5,3.67842]
[1739784694316,3.67787,2719.0,2718.5,3.67842]
[1739784694614,7.35628,2718.8,2718.3,3.67873]
[1739784694911,0.277,2718.7,2718.3,3.67873]
[1739784695521,0.277,2718.7,2718.5,3.67837]
[1739784696029,0.277,2718.7,2718.6,3.67836]
[1739784696241,0.8028,2718.9,2717.9,3.48709133]
[1739784696242,0.277,2718.8,2718.7,3.67821]
[1739784696400,0.277,2718.8,2718.5,3.67841]
[1739784696932,0.277,2718.8,2718.5,7.35683]
[1739784697254,0.277,2718.8,2718.5,3.67841]
[1739784697580,0.277,2718.8,2718.5,3.67839]
[1739784697780,0.277,2718.8,2718.6,3.67835]
[1739784698217,0.277,2718.8,2718.5,3.67839]
[1739784698404,0.277,2718.8,2718.7,3.67822]
[1739784700100,0.277,2718.8,2718.6,7.35661]
[1739784700300,0.277,2718.8,2718.7,3.67822]
[1739784700911,0.7821,2719.1,2718.7,3.67822]
[1739784701627,0.277,2719.0,2718.9,3.67788]
[1739784702001,0.7821,2719.1,2718.8,3.67808]
[1739784702202,1.0591,2719.1,2718.8,3.67808]
[1739784702432,1.0591,2719.1,2718.7,3.67819]
[1739784702817,0.473668,2719.0,2718.8,3.67805]
[1739784703135,1.0591,2719.1,2718.8,3.67805]
[1739784703740,1.0591,2719.1,2718.6,3.67827]
[1739784703938,1.0591,2719.1,2718.7,3.67813]
[1739784705941,1.0591,2719.1,2718.8,3.67804]
[1739784706117,1.0591,2719.1,2719.0,3.67782]
[1739784706323,1.0591,2719.1,2718.7,3.67812]
[1739784706533,1.0591,2719.1,2718.9,3.67794]
[1739784707211,1.0591,2719.1,2718.7,3.67812]
[1739784707513,1.0591,2719.1,2718.8,3.67804]
[1739784707714,1.55133956,2719.1,2718.8,3.67804]
[1739784708043,0.7821,2719.1,2718.9,3.67787]
[1739784708235,0.277,2719.0,2718.9,3.67787]
[1739784709633,0.277,2719.2,2719.1,3.67766]
[1739784709806,0.277,2719.3,2719.2,3.67755]
[1739784711034,1.0604,2719.5,2719.3,3.67731]
[1739784711744,0.8019,2719.7,2719.4,3.67728]
[1739784711976,0.277,2719.6,2719.5,3.67714]
[1739784712167,0.277,2719.6,2719.2,3.67745]
[1739784713114,0.277,2719.6,2719.3,3.67741]
[1739784713314,1.21149,2719.6,2719.1,4.44455]
[1739784713539,0.8245,2719.4,2719.0,3.67781]
[1739784713941,0.8245,2719.4,2719.0,3.67773]
[1739784715556,0.8245,2719.4,2718.5,7.96066133]
[1739784715715,0.277,2719.6,2718.9,0.8112]
[1739784716114,0.277,2719.6,2719.2,3.67742]
[1739784716715,0.277,2719.6,2719.2,7.35489]
[1739784717263,3.67723,2719.5,2719.0,3.67774]
[1739784717415,4.51795,2719.5,2719.0,3.67774]
[1739784718257,0.84072,2719.5,2718.7,0.7778]
[1739784718435,0.277,2719.6,2718.9,3.67795]
[1739784718636,0.7761,2719.7,2719.3,3.67732]
[1739784719154,12.21974,2719.8,2719.2,4.43742]
[1739784719155,8.266,2719.8,2719.6,3.67701]
[1739784719463,8.266,2719.8,2719.6,7.35394]
[1739784719756,1.0421,2720.0,2719.8,3.67666]
[1739784719961,0.277,2720.2,2719.8,3.67666]
[1739784720160,0.277,2720.2,2719.6,0.7599]
[1739784720322,0.277,2720.2,2719.7,3.67687]
[1739784720521,0.277,2720.2,2719.8,3.67672]
[1739784720927,0.277,2720.2,2719.7,3.67687]
[1739784721129,0.277,2720.2,2719.7,4.488163]
[1739784721333,3.95323,2720.2,2719.7,4.488163]
[1739784721735,0.277,2720.2,2719.7,4.488163]
[1739784721940,0.277,2720.2,2719.8,3.67665]
[1739784722182,4.44117,2720.3,2719.8,3.67665]
[1739784722334,0.277,2720.1,2719.8,3.67665]
[1739784723383,0.277,2720.1,2719.6,3.67692]
[1739784723535,0.277,2720.1,2719.3,0.7852]
[1739784723536,3.67662,2719.9,2719.4,3.67719]
[1739784723926,3.67676,2719.8,2719.3,3.67739]
[1739784724239,0.7796,2719.7,2719.2,3.67749]
[1739784724439,0.7796,2719.7,2719.3,3.67733]
[1739784724844,0.7796,2719.7,2719.4,3.67717]
[1739784725041,0.7769,2719.9,2719.6,3.67688]
[1739784725369,0.7769,2719.9,2719.7,3.67686]
[1739784725924,0.7769,2719.9,2719.4,0.8285]
[1739784726226,0.277,2719.8,2719.7,3.67686]
[1739784726657,0.277,2720.0,2719.8,3.67672]
[1739784727363,0.277,2720.0,2719.7,3.67677]
[1739784727529,0.277,2720.0,2719.8,3.67673]
[1739784728161,0.277,2720.0,2719.8,3.67665]
[1739784728659,0.277,2720.0,2719.9,3.6766]
[1739784728860,0.7571,2720.2,2719.6,3.48709133]
[1739784729083,0.277,2720.1,2719.9,3.67652]
[1739784729288,0.277,2720.1,2720.0,3.67647]
[1739784731766,0.817,2720.4,2720.0,3.67647]
[1739784731966,0.8178,2720.7,2720.2,7.16319133]
[1739784732268,0.8178,2720.7,2720.1,0.0367622]
[1739784732269,0.8178,2720.7,2720.3,3.67597]
[1739784732464,0.8178,2720.7,2719.9,3.67654]
[1739784732465,4.44229,2720.5,2719.9,3.67654]
[1739784732665,3.67594,2720.4,2719.9,3.67654]
[1739784733037,0.7664,2720.5,2720.0,3.67645]
[1739784733232,0.7664,2720.5,2720.0,7.35283]
[1739784733435,0.7664,2720.5,2720.1,3.67625]
[1739784733651,0.7664,2720.5,2720.1,3.6762]
[1739784735143,0.7664,2720.5,2720.3,3.67604]
[1739784735343,0.8172,2720.7,2720.4,3.67585]
[1739784735544,0.8172,2720.7,2720.3,3.67604]
[1739784735545,0.277,2720.6,2720.3,7.16313133]
[1739784735745,0.8172,2720.7,2720.5,3.67579]
[1739784735940,1.0942,2720.7,2720.5,3.67579]
[1739784736341,0.8172,2720.7,2720.5,3.67579]
[1739784736654,0.8172,2720.7,2720.6,3.67565]
[1739784736860,8.542,2720.8,2720.5,3.67579]
[1739784737651,8.542,2720.8,2720.5,3.67571]
[1739784737851,8.542,2720.8,2720.5,3.67568]
[1739784738170,8.542,2720.8,2720.5,4.47112445]
[1739784738343,8.542,2720.8,2720.5,0.79544445]
[1739784738544,8.542,2720.8,2720.7,3.67552]
[1739784739373,8.542,2720.8,2720.6,3.67557]
[1739784739951,8.542,2720.8,2720.6,7.35112]
[1739784740154,8.542,2720.8,2720.6,3.67555]
[1739784740357,8.542,2720.8,2720.4,3.67582]
[1739784740558,0.7907,2720.7,2720.2,4.42972]
[1739784740875,8.265,2720.8,2720.2,1.54528113]
[1739784741050,0.277,2720.7,2720.5,3.67572]
[1739784741256,0.277,2720.7,2720.4,3.67583]
[1739784741443,0.277,2720.7,2720.3,3.67602]
[1739784741642,0.277,2720.7,2720.2,4.46780113]
[1739784741877,0.277,2720.7,2720.4,3.67591]
[1739784742661,0.277,2720.7,2720.3,3.67605]
[1739784744011,0.277,2720.7,2720.6,3.67565]
[1739784744687,0.277,2720.7,2720.6,4.121855]
[1739784746289,0.7967,2721.3,2720.6,0.446205]
[1739784746502,0.7967,2721.3,2721.0,3.67499]
[1739784746796,0.7967,2721.3,2721.1,3.67491]
[1739784746992,0.7967,2721.3,2720.9,3.67516]
[1739784747384,0.7967,2721.3,2720.9,7.3503]
[1739784748169,0.7967,2721.3,2720.9,3.67514]
[1739784749201,0.7967,2721.3,2721.0,3.67511]
[1739784749376,0.7967,2721.3,2720.9,3.67514]
[1739784749905,0.7967,2721.3,2720.9,7.35032]
[1739784750100,0.7967,2721.3,2720.8,3.67538]
[1739784750283,4.47143,2721.3,2720.8,3.67538]
[1739784750604,4.47143,2721.3,2720.9,3.67524]
[1739784751503,3.67496,2721.2,2720.5,0.7864]
[1739784751693,0.8331,2721.0,2720.6,3.67562]
[1739784752269,3.67533,2720.9,2720.4,3.67585]
[1739784752681,3.67533,2720.9,2720.5,3.67576]
[1739784753094,3.67533,2720.9,2720.3,3.67596]
[1739784753394,0.7827,2720.5,2720.1,3.67631]
[1739784753594,1.0597,2720.5,2720.2,3.67617]
[1739784753795,1.0597,2720.5,2720.1,3.67631]
[1739784754166,1.0597,2720.5,2720.1,3.67626]
[1739784754807,1.0597,2720.5,2719.9,3.67654]
[1739784754974,4.73551,2720.5,2719.9,4.16053491]
[1739784755703,1.0597,2720.5,2719.7,0.34870913]
[1739784755913,3.8209,2720.4,2719.8,3.67663]
[1739784756072,4.49684,2720.4,2719.8,3.67663]
[1739784756411,4.49684,2720.4,2719.9,3.6766]
[1739784756567,4.49684,2720.4,2719.9,3.67651]
[1739784757792,0.8209,2720.4,2719.9,3.67651]
[1739784757994,0.8209,2720.4,2719.9,3.67647]
[1739784758201,0.8209,2720.4,2720.3,3.67606]
[1739784758399,0.277,2720.4,2720.3,3.67598]
[1739784758602,0.277,2720.4,2720.2,3.67619]
[1739784759377,0.277,2720.4,2720.2,3.67612]
[1739784759617,0.277,2720.4,2720.3,3.67606]
[1739784759837,0.277,2720.4,2720.2,3.67612]
[1739784760132,0.277,2720.4,2720.3,3.67606]
[1739784760714,0.277,2720.4,2720.2,3.67608]
[1739784761029,1.0471,2720.4,2720.2,3.67608]
[1739784761175,0.277,2720.4,2720.3,3.67606]
[1739784761810,0.277,2720.4,2719.9,0.735334]
[1739784762016,0.277,2720.4,2719.8,4.4674]
[1739784762017,0.277,2720.4,2720.0,0.5202734]
[1739784762515,0.277,2720.4,2720.1,3.67629]
[1739784762704,0.277,2720.4,2720.1,7.35254]
[1739784763216,0.277,2720.4,2720.2,3.67617]
[1739784768784,0.7701,2720.7,2719.9,4.03709133]
[1739784769102,0.8006,2720.9,2720.7,3.67545]
[1739784769939,0.8006,2720.9,2720.7,3.67543]
[1739784770422,0.277,2721.2,2721.1,3.6749]
[1739784770613,4.0541,2721.3,2721.1,3.6749]
[1739784770812,3.7771,2721.3,2721.1,3.6749]
[1739784771012,8.261,2721.4,2721.3,3.67471]
[1739784771200,8.538,2721.4,2721.3,3.67471]
[1739784771520,8.538,2721.4,2721.2,3.67484]
[1739784772115,8.538,2721.4,2721.2,3.67476]
[1739784772485,8.538,2721.4,2721.2,7.34953]
[1739784772691,8.538,2721.4,2721.2,3.67476]
[1739784773428,8.538,2721.4,2721.2,7.34949]
[1739784773636,8.538,2721.4,2721.2,3.67474]
[1739784773841,8.538,2721.4,2721.1,3.67489]
[1739784774835,8.538,2721.4,2721.0,3.67504]
[1739784775041,8.538,2721.4,2721.2,3.67482]
[1739784775240,8.538,2721.4,2721.3,3.67471]
[1739784775403,8.538,2721.4,2721.2,3.67482]
[1739784775603,8.538,2721.4,2721.1,3.67495]
[1739784776424,8.538,2721.4,2721.2,3.67483]
[1739784777174,8.538,2721.4,2721.2,3.67476]
[1739784778140,8.538,2721.4,2721.3,3.67471]
[1739784779935,8.538,2721.4,2721.2,7.34952]
[1739784780137,8.538,2721.4,2721.1,3.67495]
[1739784780372,8.538,2721.4,2721.0,3.67504]
[1739784780511,8.538,2721.4,2721.1,3.67494]
[1739784781619,8.538,2721.4,2721.0,3.67508]
[1739784781946,8.538,2721.4,2721.0,3.67499]
[1739784782168,8.538,2721.4,2721.1,3.67491]
[1739784782311,8.538,2721.4,2721.3,3.67471]
[1739784783725,8.261,2721.4,2721.3,4.28861082]
[1739784784034,8.261,2721.4,2721.3,3.67471]
[1739784784615,0.277,2721.9,2721.8,3.67402]
[1739784784816,0.277,2721.9,2721.6,4.50272]
[1739784785015,0.277,2721.9,2721.6,3.67422]
[1739784785243,0.277,2721.9,2721.5,3.67444]
[1739784785616,0.7504,2721.8,2721.4,3.67448]
[1739784785848,0.7504,2721.8,2721.4,7.34898]